[Event "Titled Tuesday Blitz June 27 Early 2023"]
[White "Gyulamiryan-koryun"]
[Black "Petrova, Irina"]
[BlackFideId "14124122"]
[WhiteElo "2001"]
[BlackElo "2399"]
[Result "1-0"]
[Round "6"]
[TimeControl "180+2"]
[Date "2023.06.27"]
[WhiteClock "0:00:21"]
[BlackClock "0:00:12"]
[Board "173"]

1. d4 {[%clk 0:02:51]}  d6 {[%clk 0:03:00]} 2. c4 {[%clk 0:02:49]}  e5 {[%clk 0:02:58]} 3. dxe5 {[%clk 0:02:47]}  dxe5 {[%clk 0:02:59]} 4. Qxd8+ {[%clk 0:02:47]}  Kxd8 {[%clk 0:02:59]} 5. Nc3 {[%clk 0:02:47]}  c6 {[%clk 0:02:59]} 6. Nf3 {[%clk 0:02:44]}  f6 {[%clk 0:02:59]} 7. e4 {[%clk 0:02:38]}  Be6 {[%clk 0:02:59]} 8. Be3 {[%clk 0:02:33]}  Nd7 {[%clk 0:02:59]} 9. O-O-O {[%clk 0:02:32]}  Kc7 {[%clk 0:02:59]} 10. h3 {[%clk 0:02:23]}  Ne7 {[%clk 0:02:59]} 11. Be2 {[%clk 0:02:20]}  Nc8 {[%clk 0:02:59]} 12. Kc2 {[%clk 0:02:04]}  Ncb6 {[%clk 0:02:58]} 13. b3 {[%clk 0:02:02]}  a5 {[%clk 0:02:57]} 14. a4 {[%clk 0:02:00]}  Nc5 {[%clk 0:02:53]} 15. Nd2 {[%clk 0:01:54]}  Na6 {[%clk 0:02:52]} 16. f4 {[%clk 0:01:46]}  Nb4+ {[%clk 0:02:50]} 17. Kb2 {[%clk 0:01:46]}  Nd7 {[%clk 0:02:37]} 18. Nf3 {[%clk 0:01:39]}  exf4 {[%clk 0:02:13]} 19. Bxf4+ {[%clk 0:01:38]}  Kc8 {[%clk 0:02:13]} 20. Nd4 {[%clk 0:01:31]}  Bf7 {[%clk 0:02:12]} 21. Nf5 {[%clk 0:01:25]}  Nc5 {[%clk 0:02:07]} 22. Nd6+ {[%clk 0:01:16]}  Bxd6 {[%clk 0:02:07]} 23. Bxd6 {[%clk 0:01:16]}  Ne6 {[%clk 0:01:58]} 24. e5 {[%clk 0:01:08]}  f5 {[%clk 0:01:54]} 25. g4 {[%clk 0:01:04]}  Nf4 {[%clk 0:01:40]} 26. gxf5 {[%clk 0:01:04]}  Nxe2 {[%clk 0:01:35]} 27. Nxe2 {[%clk 0:01:04]}  Bh5 {[%clk 0:01:36]} 28. Rd2 {[%clk 0:01:02]}  Re8 {[%clk 0:01:31]} 29. Nf4 {[%clk 0:01:00]}  Bf3 {[%clk 0:01:26]} 30. Rg1 {[%clk 0:00:57]}  Be4 {[%clk 0:01:08]} 31. Ne6 {[%clk 0:00:50]}  Nd3+ {[%clk 0:00:52]} 32. Rxd3 {[%clk 0:00:38]}  Bxd3 {[%clk 0:00:52]} 33. Rxg7 {[%clk 0:00:35]}  Bxf5 {[%clk 0:00:46]} 34. Rc7+ {[%clk 0:00:34]}  Kb8 {[%clk 0:00:43]} 35. Nc5 {[%clk 0:00:22]}  Bc8 {[%clk 0:00:32]} 36. Re7+ {[%clk 0:00:19]}  Ka7 {[%clk 0:00:31]} 37. Rxe8 {[%clk 0:00:19]}  Kb6 {[%clk 0:00:29]} 38. Ne4 {[%clk 0:00:19]}  Ka7 {[%clk 0:00:25]} 39. c5 {[%clk 0:00:19]}  b6 {[%clk 0:00:24]} 40. Nf6 {[%clk 0:00:19]}  bxc5 {[%clk 0:00:23]} 41. Bxc5+ {[%clk 0:00:20]}  Kb7 {[%clk 0:00:23]} 42. Bd6 {[%clk 0:00:21]}  Be6 {[%clk 0:00:21]} 43. Rxa8 {[%clk 0:00:21]}  Kxa8 {[%clk 0:00:22]} 44. Kc3 {[%clk 0:00:21]}  Kb7 {[%clk 0:00:23]} 45. b4 {[%clk 0:00:21]}  Kc8 {[%clk 0:00:24]} 46. bxa5 {[%clk 0:00:21]}  Kb7 {[%clk 0:00:23]} 47. h4 {[%clk 0:00:21]}  Ka6 {[%clk 0:00:23]} 48. Kb4 {[%clk 0:00:22]}  Bf5 {[%clk 0:00:22]} 49. Ne8 {[%clk 0:00:21]}  Be6 {[%clk 0:00:20]} 50. Nc7+ {[%clk 0:00:22]}  Kb7 {[%clk 0:00:20]} 51. Nxe6 {[%clk 0:00:23]}  Ka6 {[%clk 0:00:20]} 52. Nc5+ {[%clk 0:00:23]}  Ka7 {[%clk 0:00:20]} 53. e6 {[%clk 0:00:22]}  h5 {[%clk 0:00:20]} 54. e7 {[%clk 0:00:22]}  Ka8 {[%clk 0:00:15]} 55. e8=Q+ {[%clk 0:00:21]}  Ka7 {[%clk 0:00:12]} 56. Qd7+ {[%clk 0:00:21]} 1-0


[Site "https://www.chess.com"]

[Event "Titled Tuesday Blitz June 27 Early 2023"]
[White "Mayank Chakraborty"]
[Black "Zaksaite, Salomeja"]
[WhiteFideId "25659766"]
[BlackFideId "12801496"]
[WhiteElo "2807"]
[BlackElo "2285"]
[Result "1-0"]
[Round "6"]
[TimeControl "180+2"]
[Date "2023.06.27"]
[WhiteClock "0:00:08"]
[BlackClock "0:00:00"]
[Board "176"]

1. d4 {[%clk 0:03:00]}  Nf6 {[%clk 0:02:54]} 2. Nc3 {[%clk 0:03:00]}  d5 {[%clk 0:02:52]} 3. Bf4 {[%clk 0:03:00]}  a6 {[%clk 0:02:48]} 4. e3 {[%clk 0:02:56]}  e6 {[%clk 0:02:47]} 5. Nf3 {[%clk 0:02:53]}  b5 {[%clk 0:02:47]} 6. Ne5 {[%clk 0:02:51]}  Bb7 {[%clk 0:02:47]} 7. Bd3 {[%clk 0:02:50]}  c5 {[%clk 0:02:45]} 8. dxc5 {[%clk 0:02:43]}  Bxc5 {[%clk 0:02:43]} 9. Ne2 {[%clk 0:02:39]}  O-O {[%clk 0:02:38]} 10. O-O {[%clk 0:02:36]}  Nbd7 {[%clk 0:02:38]} 11. Nd4 {[%clk 0:02:27]}  Nxe5 {[%clk 0:02:30]} 12. Bxe5 {[%clk 0:02:27]}  Bd6 {[%clk 0:02:20]} 13. Bxd6 {[%clk 0:02:03]}  Qxd6 {[%clk 0:02:20]} 14. a4 {[%clk 0:02:04]}  b4 {[%clk 0:02:17]} 15. a5 {[%clk 0:02:02]}  e5 {[%clk 0:02:07]} 16. Nb3 {[%clk 0:01:43]}  Rac8 {[%clk 0:01:58]} 17. Qd2 {[%clk 0:01:37]}  Rfd8 {[%clk 0:01:50]} 18. Ra4 {[%clk 0:01:31]}  d4 {[%clk 0:01:33]} 19. Rxb4 {[%clk 0:01:20]}  Qc6 {[%clk 0:01:12]} 20. f3 {[%clk 0:01:01]}  Nd5 {[%clk 0:01:02]} 21. Rc4 {[%clk 0:01:00]}  dxe3 {[%clk 0:00:48]} 22. Rxc6 {[%clk 0:00:42]}  exd2 {[%clk 0:00:45]} 23. Rxc8 {[%clk 0:00:43]}  Rxc8 {[%clk 0:00:45]} 24. Nxd2 {[%clk 0:00:44]}  Nb4 {[%clk 0:00:38]} 25. Nc4 {[%clk 0:00:44]}  Nxc2 {[%clk 0:00:32]} 26. Nd6 {[%clk 0:00:32]}  Rd8 {[%clk 0:00:23]} 27. Nxb7 {[%clk 0:00:29]}  Rxd3 {[%clk 0:00:21]} 28. Rc1 {[%clk 0:00:29]}  Rd2 {[%clk 0:00:18]} 29. Nc5 {[%clk 0:00:29]}  Nd4 {[%clk 0:00:14]} 30. Ne4 {[%clk 0:00:11]}  Ne2+ {[%clk 0:00:10]} 31. Kf1 {[%clk 0:00:11]}  Nxc1 {[%clk 0:00:08]} 32. Nxd2 {[%clk 0:00:12]}  Nd3 {[%clk 0:00:06]} 33. Nc4 {[%clk 0:00:11]}  f5 {[%clk 0:00:04]} 34. Ke2 {[%clk 0:00:08]}  e4 {[%clk 0:00:04]} 35. fxe4 {[%clk 0:00:07]}  fxe4 {[%clk 0:00:05]} 36. Ke3 {[%clk 0:00:08]}  Kf7 {[%clk 0:00:03]} 37. Kxe4 {[%clk 0:00:08]}  Nc5+ {[%clk 0:00:03]} 38. Kd5 {[%clk 0:00:08]}  Nb3 {[%clk 0:00:03]} 39. Kc6 {[%clk 0:00:07]}  Ke6 {[%clk 0:00:02]} 40. Kb6 {[%clk 0:00:08]}  Kd5 {[%clk 0:00:02]} 41. Ne3+ {[%clk 0:00:08]}  Kd4 {[%clk 0:00:00]} 42. Nf5+ {[%clk 0:00:08]} 1-0


[Site "https://www.chess.com"]

[Event "Titled Tuesday Blitz June 27 Early 2023"]
[White "O`Gorman, Tom"]
[Black "Bolanos, Fernando"]
[WhiteFideId "2508249"]
[BlackFideId "3304094"]
[WhiteElo "2567"]
[BlackElo "2262"]
[Result "1-0"]
[Round "6"]
[TimeControl "180+2"]
[Date "2023.06.27"]
[WhiteClock "0:02:16"]
[BlackClock "0:00:19"]
[Board "178"]

1. c4 {[%clk 0:03:00]}  e6 {[%clk 0:02:59]} 2. g3 {[%clk 0:03:01]}  Nf6 {[%clk 0:02:59]} 3. Bg2 {[%clk 0:03:01]}  d5 {[%clk 0:03:00]} 4. Nf3 {[%clk 0:03:01]}  dxc4 {[%clk 0:03:00]} 5. O-O {[%clk 0:03:00]}  Be7 {[%clk 0:02:59]} 6. Qa4+ {[%clk 0:02:59]}  Bd7 {[%clk 0:02:57]} 7. Qxc4 {[%clk 0:03:00]}  c5 {[%clk 0:02:53]} 8. d4 {[%clk 0:02:52]}  b5 {[%clk 0:02:02]} 9. Qc2 {[%clk 0:02:51]}  c4 {[%clk 0:01:57]} 10. Ne5 {[%clk 0:02:48]}  Nd5 {[%clk 0:01:58]} 11. Nc3 {[%clk 0:02:45]}  f6 {[%clk 0:00:42]} 12. Nxd5 {[%clk 0:02:41]}  exd5 {[%clk 0:00:42]} 13. Bxd5 {[%clk 0:02:40]}  Bh3 {[%clk 0:00:25]} 14. Bxa8 {[%clk 0:02:29]}  Bxf1 {[%clk 0:00:26]} 15. Nc6 {[%clk 0:02:25]}  Nxc6 {[%clk 0:00:23]} 16. Bxc6+ {[%clk 0:02:24]}  Kf7 {[%clk 0:00:23]} 17. Kxf1 {[%clk 0:02:24]}  Qxd4 {[%clk 0:00:23]} 18. Be3 {[%clk 0:02:23]}  Qe5 {[%clk 0:00:23]} 19. Rd1 {[%clk 0:02:20]}  Rc8 {[%clk 0:00:22]} 20. Bd5+ {[%clk 0:02:16]}  Kf8 {[%clk 0:00:19]} 21. Qxh7 {[%clk 0:02:16]} 1-0


[Site "https://www.chess.com"]

[Event "Titled Tuesday Blitz June 27 Early 2023"]
[White "De Souza, Cristiano Gomes"]
[Black "Sharma, Dinesh K."]
[WhiteFideId "2151758"]
[BlackFideId "5004110"]
[WhiteElo "2252"]
[BlackElo "2552"]
[Result "0-1"]
[Round "6"]
[TimeControl "180+2"]
[Date "2023.06.27"]
[WhiteClock "0:00:00"]
[BlackClock "0:01:32"]
[Board "179"]

1. d4 {[%clk 0:02:54]}  d5 {[%clk 0:02:59]} 2. c4 {[%clk 0:02:52]}  c6 {[%clk 0:02:59]} 3. Nf3 {[%clk 0:02:51]}  Nf6 {[%clk 0:02:59]} 4. Nc3 {[%clk 0:02:49]}  a6 {[%clk 0:02:59]} 5. a4 {[%clk 0:02:48]}  dxc4 {[%clk 0:02:59]} 6. e4 {[%clk 0:02:48]}  e6 {[%clk 0:02:56]} 7. Bxc4 {[%clk 0:02:46]}  Bb4 {[%clk 0:02:57]} 8. e5 {[%clk 0:02:46]}  Nd5 {[%clk 0:02:56]} 9. Bd2 {[%clk 0:02:46]}  O-O {[%clk 0:02:55]} 10. O-O {[%clk 0:02:43]}  c5 {[%clk 0:02:53]} 11. Ne4 {[%clk 0:02:37]}  Bxd2 {[%clk 0:02:52]} 12. Qxd2 {[%clk 0:02:38]}  cxd4 {[%clk 0:02:52]} 13. Qxd4 {[%clk 0:02:31]}  Nc6 {[%clk 0:02:52]} 14. Qd2 {[%clk 0:02:30]}  Ndb4 {[%clk 0:02:46]} 15. Qc3 {[%clk 0:02:25]}  Bd7 {[%clk 0:02:43]} 16. Rfd1 {[%clk 0:02:20]}  Qc7 {[%clk 0:02:41]} 17. Rd2 {[%clk 0:01:55]}  Rfd8 {[%clk 0:02:40]} 18. Rad1 {[%clk 0:01:54]}  Be8 {[%clk 0:02:39]} 19. Nd6 {[%clk 0:01:36]}  h6 {[%clk 0:02:35]} 20. Nxe8 {[%clk 0:01:29]}  Rxe8 {[%clk 0:02:34]} 21. Rd7 {[%clk 0:01:28]}  Qa5 {[%clk 0:02:32]} 22. Rxb7 {[%clk 0:01:25]}  Rab8 {[%clk 0:02:31]} 23. Rdd7 {[%clk 0:01:22]}  Rxb7 {[%clk 0:02:31]} 24. Rxb7 {[%clk 0:01:22]}  Qxa4 {[%clk 0:02:23]} 25. b3 {[%clk 0:01:14]}  Qa5 {[%clk 0:02:16]} 26. h3 {[%clk 0:01:13]}  Rd8 {[%clk 0:02:10]} 27. Kh2 {[%clk 0:00:56]}  Qc5 {[%clk 0:02:00]} 28. Rxf7 {[%clk 0:00:50]}  Nd5 {[%clk 0:01:48]} 29. Rxg7+ {[%clk 0:00:31]}  Kxg7 {[%clk 0:01:46]} 30. Qa1 {[%clk 0:00:21]}  Qxf2 {[%clk 0:01:42]} 31. Qxa6 {[%clk 0:00:18]}  Nf4 {[%clk 0:01:41]} 32. Qb7+ {[%clk 0:00:16]}  Kh8 {[%clk 0:01:39]} 33. Ne1 {[%clk 0:00:03]}  Qxe1 {[%clk 0:01:35]} 34. Qxc6 {[%clk 0:00:03]}  Qxe5 {[%clk 0:01:35]} 35. Qf3 {[%clk 0:00:02]}  Ng6+ {[%clk 0:01:32]} 36. Qg3 {[%clk 0:00:02]}  Qxg3+ {[%clk 0:01:32]} 37. Kxg3 {[%clk 0:00:00]}  e5 {[%clk 0:01:32]} 0-1


[Site "https://www.chess.com"]

[Event "Titled Tuesday Blitz June 27 Early 2023"]
[White "Lehtosaari, Mauri"]
[Black "Zampronha, Wladimir Camilo"]
[WhiteFideId "501999"]
[BlackFideId "2103087"]
[WhiteElo "2498"]
[BlackElo "2243"]
[Result "1/2-1/2"]
[Round "6"]
[TimeControl "180+2"]
[Date "2023.06.27"]
[WhiteClock "0:00:12"]
[BlackClock "0:01:05"]
[Board "180"]

1. d4 {[%clk 0:03:00]}  Nf6 {[%clk 0:02:59]} 2. f4 {[%clk 0:03:01]}  Ne4 {[%clk 0:02:50]} 3. Nd2 {[%clk 0:02:47]}  Nxd2 {[%clk 0:02:49]} 4. Bxd2 {[%clk 0:02:46]}  d5 {[%clk 0:02:49]} 5. Nf3 {[%clk 0:02:39]}  Bf5 {[%clk 0:02:48]} 6. c3 {[%clk 0:02:36]}  e6 {[%clk 0:02:48]} 7. Be3 {[%clk 0:02:36]}  Nd7 {[%clk 0:02:45]} 8. Bf2 {[%clk 0:02:36]}  Nf6 {[%clk 0:02:44]} 9. Qb3 {[%clk 0:02:34]}  Rb8 {[%clk 0:02:39]} 10. e3 {[%clk 0:02:31]}  c6 {[%clk 0:02:37]} 11. Bh4 {[%clk 0:02:28]}  Be7 {[%clk 0:02:36]} 12. Be2 {[%clk 0:02:20]}  O-O {[%clk 0:02:36]} 13. O-O {[%clk 0:02:17]}  Ne4 {[%clk 0:02:37]} 14. Bxe7 {[%clk 0:02:17]}  Qxe7 {[%clk 0:02:38]} 15. Rad1 {[%clk 0:02:16]}  c5 {[%clk 0:02:34]} 16. Qa3 {[%clk 0:02:11]}  a6 {[%clk 0:02:32]} 17. Ne5 {[%clk 0:02:07]}  h6 {[%clk 0:02:22]} 18. Bf3 {[%clk 0:01:58]}  Rfc8 {[%clk 0:02:15]} 19. Bxe4 {[%clk 0:01:41]}  Bxe4 {[%clk 0:02:13]} 20. dxc5 {[%clk 0:01:41]}  f6 {[%clk 0:01:58]} 21. Nd3 {[%clk 0:01:23]}  Bxd3 {[%clk 0:01:58]} 22. Rxd3 {[%clk 0:01:24]}  Qxc5 {[%clk 0:01:58]} 23. Qxc5 {[%clk 0:01:20]}  Rxc5 {[%clk 0:01:59]} 24. Kf2 {[%clk 0:01:12]}  Kf7 {[%clk 0:01:59]} 25. Re1 {[%clk 0:01:12]}  f5 {[%clk 0:01:59]} 26. Rc1 {[%clk 0:01:09]}  b5 {[%clk 0:01:59]} 27. Rd4 {[%clk 0:01:09]}  a5 {[%clk 0:01:58]} 28. Rcd1 {[%clk 0:01:07]}  Ke7 {[%clk 0:01:58]} 29. h3 {[%clk 0:01:07]}  b4 {[%clk 0:01:56]} 30. cxb4 {[%clk 0:01:06]}  axb4 {[%clk 0:01:57]} 31. R1d2 {[%clk 0:01:05]}  Kd6 {[%clk 0:01:56]} 32. g4 {[%clk 0:01:04]}  g6 {[%clk 0:01:55]} 33. Kf3 {[%clk 0:00:56]}  Ra5 {[%clk 0:01:54]} 34. b3 {[%clk 0:00:55]}  Rc5 {[%clk 0:01:54]} 35. Rg2 {[%clk 0:00:41]}  Ra5 {[%clk 0:01:42]} 36. gxf5 {[%clk 0:00:38]}  gxf5 {[%clk 0:01:39]} 37. Rdd2 {[%clk 0:00:36]}  Rba8 {[%clk 0:01:34]} 38. h4 {[%clk 0:00:35]}  R8a7 {[%clk 0:01:29]} 39. h5 {[%clk 0:00:35]}  Ra8 {[%clk 0:01:26]} 40. Rc2 {[%clk 0:00:31]}  R8a6 {[%clk 0:01:26]} 41. Rgd2 {[%clk 0:00:28]}  Rc5 {[%clk 0:01:25]} 42. Rxc5 {[%clk 0:00:27]}  Kxc5 {[%clk 0:01:26]} 43. Rg2 {[%clk 0:00:24]}  Kd6 {[%clk 0:01:27]} 44. Rg6 {[%clk 0:00:20]}  Kc5 {[%clk 0:01:28]} 45. Rxh6 {[%clk 0:00:19]}  d4 {[%clk 0:01:24]} 46. exd4+ {[%clk 0:00:17]}  Kxd4 {[%clk 0:01:24]} 47. Rh8 {[%clk 0:00:14]}  Kc3 {[%clk 0:01:24]} 48. Rb8 {[%clk 0:00:13]}  Rxa2 {[%clk 0:01:16]} 49. Kg3 {[%clk 0:00:14]}  Ra3 {[%clk 0:01:14]} 50. h6 {[%clk 0:00:13]}  Ra7 {[%clk 0:01:12]} 51. Kh4 {[%clk 0:00:13]}  Kxb3 {[%clk 0:01:12]} 52. Kg5 {[%clk 0:00:12]}  Ka3 {[%clk 0:01:11]} 53. Kf6 {[%clk 0:00:12]}  Rh7 {[%clk 0:01:10]} 54. Kxe6 {[%clk 0:00:12]}  Rxh6+ {[%clk 0:01:10]} 55. Kxf5 {[%clk 0:00:12]}  Rh1 {[%clk 0:01:08]} 56. Kf6 {[%clk 0:00:12]}  b3 {[%clk 0:01:08]} 57. f5 {[%clk 0:00:13]}  b2 {[%clk 0:01:07]} 58. Kf7 {[%clk 0:00:11]}  Rh4 {[%clk 0:01:06]} 59. Rxb2 {[%clk 0:00:10]}  Kxb2 {[%clk 0:01:06]} 60. f6 {[%clk 0:00:11]}  Rf4 {[%clk 0:01:05]} 61. Kg7 {[%clk 0:00:11]}  Rxf6 {[%clk 0:01:05]} 62. Kxf6 {[%clk 0:00:12]} 1/2-1/2


[Site "https://www.chess.com"]

[Event "Titled Tuesday Blitz June 27 Early 2023"]
[White "Abrosimov, Vladimir"]
[Black "Gundam, Rohit"]
[WhiteFideId "4166892"]
[BlackFideId "75002809"]
[WhiteElo "2237"]
[BlackElo "2474"]
[Result "0-1"]
[Round "6"]
[TimeControl "180+2"]
[Date "2023.06.27"]
[WhiteClock "0:01:08"]
[BlackClock "0:00:15"]
[Board "181"]

1. c4 {[%clk 0:03:00]}  Nf6 {[%clk 0:02:55]} 2. Nc3 {[%clk 0:02:59]}  e5 {[%clk 0:02:56]} 3. g3 {[%clk 0:02:59]}  c6 {[%clk 0:02:56]} 4. Bg2 {[%clk 0:03:00]}  d5 {[%clk 0:02:57]} 5. cxd5 {[%clk 0:03:00]}  cxd5 {[%clk 0:02:57]} 6. d4 {[%clk 0:03:00]}  e4 {[%clk 0:02:55]} 7. Bg5 {[%clk 0:03:00]}  Nbd7 {[%clk 0:02:52]} 8. Qd2 {[%clk 0:02:54]}  h6 {[%clk 0:02:49]} 9. Bf4 {[%clk 0:02:50]}  a6 {[%clk 0:02:17]} 10. a3 {[%clk 0:02:49]}  b5 {[%clk 0:02:17]} 11. Rc1 {[%clk 0:02:45]}  Bb7 {[%clk 0:02:17]} 12. b4 {[%clk 0:02:43]}  Rc8 {[%clk 0:02:16]} 13. e3 {[%clk 0:02:41]}  Nb6 {[%clk 0:02:13]} 14. Nge2 {[%clk 0:02:36]}  Nc4 {[%clk 0:02:12]} 15. Qa2 {[%clk 0:02:36]}  g5 {[%clk 0:01:53]} 16. Be5 {[%clk 0:02:36]}  Bg7 {[%clk 0:01:47]} 17. O-O {[%clk 0:02:34]}  O-O {[%clk 0:01:46]} 18. a4 {[%clk 0:02:31]}  Qe7 {[%clk 0:01:43]} 19. axb5 {[%clk 0:02:29]}  axb5 {[%clk 0:01:38]} 20. Nxb5 {[%clk 0:02:23]}  Qxb4 {[%clk 0:01:15]} 21. Rb1 {[%clk 0:02:21]}  Qd2 {[%clk 0:01:14]} 22. Ra1 {[%clk 0:02:10]}  Ra8 {[%clk 0:01:05]} 23. Qxd2 {[%clk 0:02:05]}  Nxd2 {[%clk 0:01:06]} 24. Rxa8 {[%clk 0:02:02]}  Rxa8 {[%clk 0:01:03]} 25. Rd1 {[%clk 0:02:03]}  Ra2 {[%clk 0:00:48]} 26. Nd6 {[%clk 0:01:47]}  Ba6 {[%clk 0:00:45]} 27. Nc3 {[%clk 0:01:45]}  Rc2 {[%clk 0:00:44]} 28. Na4 {[%clk 0:01:41]}  Ng4 {[%clk 0:00:24]} 29. Bxg7 {[%clk 0:01:36]}  Kxg7 {[%clk 0:00:24]} 30. h3 {[%clk 0:01:33]}  Nxf2 {[%clk 0:00:20]} 31. Nf5+ {[%clk 0:01:22]}  Kf6 {[%clk 0:00:20]} 32. Kxf2 {[%clk 0:01:14]}  Nf3+ {[%clk 0:00:16]} 33. Rd2 {[%clk 0:01:08]}  Rxd2# {[%clk 0:00:15]} 0-1


[Site "https://www.chess.com"]

[Event "Titled Tuesday Blitz June 27 Early 2023"]
[White "Garcia Almaguer, Juan Manuel"]
[Black "Li, Eric"]
[WhiteFideId "5110491"]
[BlackFideId "30939941"]
[WhiteElo "2473"]
[BlackElo "2237"]
[Result "0-1"]
[Round "6"]
[TimeControl "180+2"]
[Date "2023.06.27"]
[WhiteClock "0:00:18"]
[BlackClock "0:00:13"]
[Board "182"]

1. e4 {[%clk 0:02:59]}  c5 {[%clk 0:02:57]} 2. Nf3 {[%clk 0:02:59]}  Nc6 {[%clk 0:02:58]} 3. d4 {[%clk 0:02:58]}  cxd4 {[%clk 0:02:59]} 4. Nxd4 {[%clk 0:02:59]}  g6 {[%clk 0:02:59]} 5. c4 {[%clk 0:02:49]}  Bg7 {[%clk 0:02:59]} 6. Nc2 {[%clk 0:02:49]}  Qb6 {[%clk 0:02:54]} 7. Nc3 {[%clk 0:02:47]}  Bxc3+ {[%clk 0:02:53]} 8. bxc3 {[%clk 0:02:48]}  Nf6 {[%clk 0:02:53]} 9. Be3 {[%clk 0:02:42]}  Qa5 {[%clk 0:02:51]} 10. Qd3 {[%clk 0:02:32]}  Ne5 {[%clk 0:02:40]} 11. Qd4 {[%clk 0:02:32]}  Nc6 {[%clk 0:02:36]} 12. Qd3 {[%clk 0:02:26]}  d6 {[%clk 0:02:30]} 13. f3 {[%clk 0:02:23]}  Be6 {[%clk 0:02:27]} 14. Bd4 {[%clk 0:02:15]}  Nxd4 {[%clk 0:02:16]} 15. Nxd4 {[%clk 0:02:16]}  O-O {[%clk 0:02:10]} 16. Nxe6 {[%clk 0:02:02]}  fxe6 {[%clk 0:02:11]} 17. Be2 {[%clk 0:02:01]}  Nd7 {[%clk 0:02:09]} 18. O-O {[%clk 0:02:00]}  Rac8 {[%clk 0:02:05]} 19. Rfb1 {[%clk 0:01:58]}  Nc5 {[%clk 0:01:58]} 20. Qd4 {[%clk 0:01:52]}  Qc7 {[%clk 0:01:45]} 21. h4 {[%clk 0:01:50]}  e5 {[%clk 0:01:36]} 22. Qe3 {[%clk 0:01:49]}  b6 {[%clk 0:01:28]} 23. Rb5 {[%clk 0:01:39]}  Ne6 {[%clk 0:01:09]} 24. g3 {[%clk 0:01:36]}  Qd7 {[%clk 0:00:46]} 25. Rd1 {[%clk 0:01:23]}  Rc5 {[%clk 0:00:42]} 26. a4 {[%clk 0:01:19]}  Qc6 {[%clk 0:00:35]} 27. Bf1 {[%clk 0:01:16]}  a6 {[%clk 0:00:32]} 28. Rb4 {[%clk 0:01:14]}  Rf6 {[%clk 0:00:28]} 29. Rd5 {[%clk 0:01:07]}  Nc7 {[%clk 0:00:27]} 30. Rxc5 {[%clk 0:01:07]}  dxc5 {[%clk 0:00:24]} 31. Rb1 {[%clk 0:01:07]}  Qxa4 {[%clk 0:00:24]} 32. Qg5 {[%clk 0:01:03]}  Qc2 {[%clk 0:00:21]} 33. Rc1 {[%clk 0:01:00]}  Qb2 {[%clk 0:00:19]} 34. Bg2 {[%clk 0:00:55]}  Ne6 {[%clk 0:00:18]} 35. Qe3 {[%clk 0:00:55]}  a5 {[%clk 0:00:18]} 36. Qe1 {[%clk 0:00:48]}  Qb3 {[%clk 0:00:16]} 37. Rb1 {[%clk 0:00:45]}  Qxc4 {[%clk 0:00:16]} 38. Rxb6 {[%clk 0:00:45]}  Kg7 {[%clk 0:00:15]} 39. Bf1 {[%clk 0:00:44]}  Qa4 {[%clk 0:00:13]} 40. f4 {[%clk 0:00:39]}  Nd4 {[%clk 0:00:11]} 41. cxd4 {[%clk 0:00:35]}  Qxd4+ {[%clk 0:00:10]} 42. Kh2 {[%clk 0:00:32]}  Rxb6 {[%clk 0:00:11]} 43. fxe5 {[%clk 0:00:24]}  Rb2+ {[%clk 0:00:12]} 44. Bg2 {[%clk 0:00:24]}  Qd2 {[%clk 0:00:12]} 45. Qf1 {[%clk 0:00:23]}  a4 {[%clk 0:00:10]} 46. e6 {[%clk 0:00:21]}  Qxg2+ {[%clk 0:00:11]} 47. Qxg2 {[%clk 0:00:21]}  Rxg2+ {[%clk 0:00:12]} 48. Kxg2 {[%clk 0:00:18]}  a3 {[%clk 0:00:13]} 0-1


[Site "https://www.chess.com"]

[Event "Titled Tuesday Blitz June 27 Early 2023"]
[White "Jaivardhan Raj"]
[Black "Ng, Clive"]
[WhiteFideId "25744437"]
[BlackFideId "3214869"]
[WhiteElo "2094"]
[BlackElo "2339"]
[Result "0-1"]
[Round "6"]
[TimeControl "180+2"]
[Date "2023.06.27"]
[WhiteClock "0:00:00"]
[BlackClock "0:00:20"]
[Board "190"]

1. e4 {[%clk 0:03:00]}  c5 {[%clk 0:02:59]} 2. Nf3 {[%clk 0:02:58]}  Nc6 {[%clk 0:02:58]} 3. d4 {[%clk 0:02:58]}  cxd4 {[%clk 0:02:58]} 4. Nxd4 {[%clk 0:02:57]}  Nf6 {[%clk 0:02:59]} 5. Nc3 {[%clk 0:02:53]}  e5 {[%clk 0:02:58]} 6. Ndb5 {[%clk 0:02:53]}  d6 {[%clk 0:02:58]} 7. Bg5 {[%clk 0:02:54]}  a6 {[%clk 0:02:58]} 8. Na3 {[%clk 0:02:54]}  b5 {[%clk 0:02:58]} 9. Nd5 {[%clk 0:02:55]}  Be7 {[%clk 0:02:59]} 10. Bxf6 {[%clk 0:02:55]}  Bxf6 {[%clk 0:02:59]} 11. c3 {[%clk 0:02:55]}  Bg5 {[%clk 0:03:00]} 12. Nc2 {[%clk 0:02:56]}  Ne7 {[%clk 0:03:00]} 13. Ncb4 {[%clk 0:02:48]}  O-O {[%clk 0:02:55]} 14. Nxe7+ {[%clk 0:02:45]}  Qxe7 {[%clk 0:02:55]} 15. Nd5 {[%clk 0:02:45]}  Qb7 {[%clk 0:02:55]} 16. h4 {[%clk 0:02:44]}  Bd8 {[%clk 0:02:53]} 17. Bd3 {[%clk 0:02:35]}  Be6 {[%clk 0:02:52]} 18. Ne3 {[%clk 0:02:31]}  Bb6 {[%clk 0:02:52]} 19. Qf3 {[%clk 0:02:29]}  Bxe3 {[%clk 0:02:35]} 20. Qxe3 {[%clk 0:02:23]}  f5 {[%clk 0:02:33]} 21. f3 {[%clk 0:02:03]}  d5 {[%clk 0:02:23]} 22. exf5 {[%clk 0:01:46]}  Bxf5 {[%clk 0:02:21]} 23. O-O {[%clk 0:01:38]}  Bxd3 {[%clk 0:02:07]} 24. Qxd3 {[%clk 0:01:36]}  Rad8 {[%clk 0:01:54]} 25. Rae1 {[%clk 0:01:21]}  Qc7 {[%clk 0:01:36]} 26. Qe3 {[%clk 0:01:12]}  Rfe8 {[%clk 0:01:32]} 27. Re2 {[%clk 0:00:54]}  Qc4 {[%clk 0:01:29]} 28. a3 {[%clk 0:00:48]}  Qxh4 {[%clk 0:01:28]} 29. Rd1 {[%clk 0:00:40]}  Qc4 {[%clk 0:01:24]} 30. Rde1 {[%clk 0:00:34]}  Re6 {[%clk 0:01:05]} 31. f4 {[%clk 0:00:30]}  e4 {[%clk 0:00:57]} 32. f5 {[%clk 0:00:27]}  Rf6 {[%clk 0:00:55]} 33. g4 {[%clk 0:00:25]}  h5 {[%clk 0:00:48]} 34. Qg5 {[%clk 0:00:12]}  hxg4 {[%clk 0:00:47]} 35. Qxg4 {[%clk 0:00:13]}  Qc5+ {[%clk 0:00:40]} 36. Kg2 {[%clk 0:00:11]}  Rdf8 {[%clk 0:00:38]} 37. Rf2 {[%clk 0:00:09]}  Qe7 {[%clk 0:00:36]} 38. Rh1 {[%clk 0:00:08]}  e3 {[%clk 0:00:31]} 39. Rf3 {[%clk 0:00:05]}  e2 {[%clk 0:00:30]} 40. Kf2 {[%clk 0:00:03]}  Re8 {[%clk 0:00:28]} 41. Re1 {[%clk 0:00:02]}  Qe5 {[%clk 0:00:25]} 42. Rxe2 {[%clk 0:00:01]}  Qxe2+ {[%clk 0:00:25]} 43. Kg3 {[%clk 0:00:02]}  Qe1+ {[%clk 0:00:24]} 44. Kf4 {[%clk 0:00:00]}  Qd2+ {[%clk 0:00:20]} 0-1


[Site "https://www.chess.com"]